bitfinex-derivatives/quotes_SOLF0:USTF0_20250528
["timestamp","ask_amount","ask_price","bid_price","bid_amount"]
[1748442870918,0.04478105,171.83,171.74,34.4]
[1748442871120,5.8189,171.78,171.74,34.4]
[1748442871522,5.8189,171.78,171.74,40.2199]
[1748442872020,0.04317297,171.78,171.74,34.43927393]
[1748442872414,5.8192,171.77,171.74,34.43927393]
[1748442873120,0.04317297,171.78,171.74,34.43927393]
[1748442873814,5.86207297,171.78,171.74,40.25917393]
[1748442874211,0.04317297,171.78,171.74,34.43927393]
[1748442875019,0.04317297,171.78,171.76,5.8191]
[1748442875217,0.04317297,171.78,171.74,34.43927393]
[1748442875427,0.04317297,171.78,171.77,5.819]
[1748442875716,3.9028,171.87,171.75,5.9868]
[1748442876117,3.9028,171.87,171.78,5.8184]
[1748442876518,0.04004308,171.84,171.81,0.04239673]
[1748442877423,5.817,171.83,171.81,0.04239673]
[1748442878022,5.8173,171.82,171.81,0.04239673]
[1748442879324,5.817,171.83,171.81,0.04239673]
[1748442880724,5.85674308,171.84,171.81,0.04239673]
[1748442881023,0.04004308,171.84,171.81,0.04239673]
[1748442882926,5.8173,171.82,171.81,0.04239673]
[1748442883225,5.8193,171.77,171.74,34.36]
[1748442883418,34.36,171.83,171.71,34.36]
[1748442883621,2.0663,171.82,171.71,34.36]
[1748442883926,2.0663,171.82,171.72,5.8205]
[1748442884323,0.03772256,171.79,171.75,0.04448667]
[1748442887124,5.8193,171.76,171.75,0.04448667]
[1748442890627,0.03772256,171.79,171.75,0.04448667]
[1748442891226,5.8189,171.78,171.75,0.04448667]
[1748442891426,0.03772256,171.79,171.75,0.04448667]
[1748442892425,5.8189,171.78,171.75,0.04448667]
[1748442892827,0.03772256,171.79,171.75,0.04448667]
[1748442893228,34.36,171.87,171.75,0.04448667]
[1748442893533,34.36,171.87,171.74,34.36]
[1748442893732,5.8178,171.81,171.77,5.8189]
[1748442894137,34.36,171.87,171.77,5.8189]
[1748442894434,0.03916041,171.84,171.8,0.03938945]
[1748442894735,5.8179,171.81,171.8,0.03938945]
[1748442896635,6.0316,171.83,171.74,34.36]
[1748442897243,5.8187,171.78,171.74,34.36]
[1748442897736,5.819,171.77,171.74,34.39677208]
[1748442898431,5.8193,171.76,171.74,34.39677208]
[1748442898631,0.04476861,171.78,171.74,34.39677208]
[1748442899039,5.8191,171.77,171.74,34.39677208]
[1748442900531,5.8193,171.76,171.74,34.39677208]
[1748442900937,0.04476861,171.78,171.74,34.39677208]
[1748442901236,5.8196,171.76,171.74,34.39677208]
[1748442901841,0.04476861,171.78,171.74,34.39677208]
[1748442902242,5.8192,171.77,171.74,34.39677208]
[1748442902643,0.04476861,171.78,171.74,34.39677208]
[1748442902941,0.04476861,171.78,171.74,0.03677208]
[1748442904748,5.8197,171.75,171.74,0.03677208]
[1748442906247,0.04476861,171.78,171.74,0.03677208]
[1748442907139,5.8194,171.76,171.74,0.03677208]
[1748442907342,0.04476861,171.78,171.74,0.03677208]
[1748442907544,5.8192,171.77,171.74,0.03677208]
[1748442908042,0.04476861,171.78,171.74,0.03677208]
[1748442908542,5.8197,171.75,171.74,0.03677208]
[1748442912542,40.3004,171.77,171.67,536.94]
[1748442912947,5.8206,171.73,171.69,5.8217]
[1748442913543,5.85960706,171.73,171.69,5.86055118]
[1748442913948,0.03900706,171.73,171.69,0.03885118]
[1748442914846,5.8214,171.7,171.69,0.03885118]
[1748442915046,0.03900706,171.73,171.69,0.03885118]
[1748442916341,5.8207,171.72,171.69,0.03885118]
[1748442917747,5.85950706,171.73,171.69,5.86045118]
[1748442917951,0.03900706,171.73,171.69,5.86045118]
[1748442918945,5.8208,171.72,171.69,0.03885118]
[1748442920151,5.8211,171.71,171.69,0.03885118]
[1748442920351,0.03900706,171.73,171.69,0.03885118]
[1748442920656,5.8214,171.7,171.69,0.03885118]
[1748442921357,5.8211,171.71,171.69,0.03885118]
[1748442921557,0.03900706,171.73,171.69,0.03885118]
[1748442922352,5.85970706,171.73,171.69,5.86045118]
[1748442922552,0.03900706,171.73,171.69,0.03885118]
[1748442923562,5.8208,171.72,171.69,0.03885118]
[1748442923951,5.8211,171.71,171.69,0.03885118]
[1748442924656,5.8214,171.7,171.69,0.03885118]
[1748442927753,0.03900706,171.73,171.69,0.03885118]
[1748442928761,5.8214,171.7,171.69,5.118e-05]
[1748442942680,11.6414,171.7,171.69,5.118e-05]
[1748442943476,5.8214,171.7,171.69,5.118e-05]
[1748442946290,11.6414,171.7,171.69,5.118e-05]
[1748442948491,11.6414,171.7,171.51,537.38]
[1748442948492,11.6483,171.62,171.48,5.8287]
[1748442948680,40.2818,171.61,171.48,5.8287]
[1748442949082,40.2818,171.61,171.47,5.8291]
[1748442949381,0.03999028,171.56,171.52,0.03782561]
[1748442950088,5.8271,171.53,171.52,0.03782561]
[1748442950587,5.8269,171.54,171.52,0.03782561]
[1748442950786,0.03999028,171.56,171.52,0.03782561]
[1748442951783,5.8265,171.55,171.52,0.03782561]
[1748442951988,0.03999028,171.56,171.52,0.03782561]
[1748442952380,5.8271,171.53,171.52,0.03782561]
[1748442953584,0.03999028,171.56,171.52,0.03782561]
[1748442954090,5.8268,171.54,171.52,0.03782561]
[1748442955390,5.8271,171.53,171.52,0.03782561]
[1748442955880,5.8267,171.55,171.52,0.03782561]
[1748442956087,0.03999028,171.56,171.52,0.03782561]
[1748442956489,5.8267,171.55,171.52,0.03782561]
[1748442956886,0.03999028,171.56,171.52,0.03782561]
[1748442957193,5.8268,171.54,171.52,0.03782561]
[1748442958191,5.8268,171.54,171.52,5.86522561]
[1748442958395,5.8271,171.53,171.52,2.561e-05]
[1748442962094,5.8269,171.54,171.52,2.561e-05]
[1748442962495,0.03999028,171.56,171.52,2.561e-05]
[1748442962696,0.03999028,171.56,171.55,5.8265]
[1748442963095,34.34,171.65,171.54,34.34]
[1748442963499,34.34,171.69,171.54,34.34]
[1748442963994,5.8244,171.62,171.54,34.34]
[1748442964196,0.04256946,171.6,171.56,0.04085422]
[1748442964493,0.04195967,171.6,171.56,0.04339147]
[1748442965002,5.8258,171.57,171.56,0.04339147]
[1748442968097,0.04195967,171.6,171.56,0.04339147]
[1748442968603,5.8254,171.59,171.56,0.04339147]
[1748442968904,0.04195967,171.6,171.56,0.04339147]
[1748442969109,5.8258,171.58,171.56,0.04339147]
[1748442970294,5.8258,171.57,171.56,0.04339147]
[1748442976201,5.8258,171.57,171.56,9.147e-05]
[1748442977405,5.8255,171.58,171.56,9.147e-05]
[1748442977608,0.04195967,171.6,171.56,9.147e-05]
[1748442978108,5.8254,171.59,171.56,9.147e-05]
[1748442978810,0.04195967,171.6,171.56,5.82609147]
[1748442979008,0.04195967,171.6,171.56,9.147e-05]
[1748442979913,0.04195967,171.6,171.58,5.8254]
[1748442980216,0.04195967,171.6,171.56,9.147e-05]
[1748442980705,11.6406,171.74,171.56,9.147e-05]
[1748442980906,11.6406,171.74,171.54,6.018]
[1748442980907,1.8841,171.73,171.54,6.018]
[1748442981108,1.8841,171.73,171.54,17.6714]
[1748442981710,0.04336619,171.65,171.62,5.86161946]
[1748442982014,0.04205541,171.65,171.62,5.86079708]
[1748442982628,0.04205541,171.65,171.62,0.03679708]
[1748442982820,5.8219,171.69,171.62,0.03679708]
[1748442983119,3.9954,171.75,171.65,5.8228]
[1748442983509,5.8223,171.68,171.65,5.8228]
[1748442983710,0.04206724,171.68,171.65,0.03733202]
[1748442986117,5.8226,171.67,171.65,0.03733202]
[1748442986713,0.04206724,171.68,171.65,0.03733202]
[1748442988023,5.8224,171.67,171.65,0.03733202]
[1748442989823,5.86426724,171.68,171.65,5.86033202]
[1748442990024,0.04206724,171.68,171.65,5.86033202]
[1748442990327,0.04206724,171.68,171.65,0.03733202]
[1748442990820,5.8224,171.67,171.65,0.03733202]
[1748442992020,5.8227,171.66,171.65,0.03733202]
[1748442994332,5.824,171.63,171.59,5.8249]
[1748442994628,5.824,171.63,171.54,6.018]
[1748442994629,11.6419,171.72,171.54,6.018]
[1748442995029,5.8244,171.62,171.59,5.825]
[1748442995220,5.8244,171.62,171.54,6.018]
[1748442995221,1.8945,171.74,171.54,6.018]
[1748442995423,11.6423,171.71,171.59,0.03845446]
[1748442995635,5.824,171.63,171.59,5.825]
[1748442995826,5.824,171.63,171.59,5.86604179]
[1748442996027,5.8236,171.64,171.59,0.04104179]
[1748442996418,0.03825354,171.66,171.59,0.04104179]
[1748442996633,5.8238,171.63,171.6,5.8245]
[1748442996820,0.03825354,171.66,171.59,0.04104179]
[1748442997229,0.03825354,171.66,171.62,5.8239]
[1748442997230,5.8233,171.65,171.62,5.8239]
[1748442997927,5.8233,171.65,171.61,5.8243]
[1748442998129,5.8235,171.64,171.59,0.04104179]
[1748442998533,5.8235,171.64,171.61,5.8242]
[1748442998831,0.03825354,171.66,171.59,0.04104179]
[1748442999732,5.86115354,171.66,171.59,0.04104179]
[1748442999932,0.03825354,171.66,171.59,0.04104179]
[1748443000234,0.03825354,171.66,171.64,5.8234]
[1748443001935,0.03825354,171.66,171.65,5.8231]
[1748443002843,0.03825354,171.66,171.63,0.03916676]
[1748443003440,5.8234,171.64,171.63,0.03916676]
[1748443003644,0.03825354,171.66,171.54,5.8678]
[1748443003847,1.8945,171.74,171.58,5.8252]
[1748443004146,5.8242,171.62,171.54,5.8678]
[1748443004348,11.6423,171.71,171.54,5.8678]
[1748443004646,5.8648972,171.64,171.61,5.86452619]
[1748443004835,0.04122447,171.64,171.61,5.86452619]
[1748443005034,5.8238,171.63,171.61,0.04022619]
[1748443005242,0.04122447,171.64,171.61,0.04022619]
[1748443005649,5.8241,171.62,171.61,0.04022619]
[1748443006046,0.04122447,171.64,171.61,0.04022619]
[1748443006947,5.8238,171.63,171.61,0.04022619]
[1748443007752,5.8241,171.62,171.61,0.04022619]
[1748443008856,5.8238,171.63,171.61,0.04022619]
[1748443009047,0.04122447,171.64,171.61,0.04022619]
[1748443009852,5.8237,171.63,171.61,0.04022619]
[1748443010047,0.04122447,171.64,171.61,0.04022619]
[1748443010454,5.8237,171.63,171.61,0.04022619]
[1748443010655,0.04122447,171.64,171.61,0.04022619]
[1748443011158,5.86482447,171.64,171.61,0.04022619]
[1748443011559,0.04122447,171.64,171.62,5.8239]
[1748443012062,0.04122447,171.64,171.61,0.04022619]
[1748443012356,5.8237,171.63,171.61,0.04022619]
[1748443013058,5.86482447,171.64,171.61,5.86452619]
[1748443013650,0.04122447,171.64,171.61,0.04022619]
[1748443014058,5.8238,171.63,171.61,0.04022619]
[1748443015153,5.8241,171.62,171.61,0.04022619]
[1748443019767,0.04122447,171.64,171.61,0.04022619]
[1748443020363,5.8237,171.63,171.61,0.04022619]
[1748443020956,5.86472447,171.64,171.61,0.04022619]
[1748443021156,0.04122447,171.64,171.61,0.04022619]
[1748443021363,5.8241,171.62,171.61,0.04022619]
[1748443023067,5.8238,171.63,171.61,0.04022619]
[1748443023359,0.04122447,171.64,171.61,0.04022619]
[1748443024458,5.8241,171.63,171.61,0.04022619]
[1748443024661,0.04122447,171.64,171.61,5.86462619]
[1748443025061,5.8238,171.63,171.61,0.04022619]
[1748443025261,0.04122447,171.64,171.61,0.04022619]
[1748443026160,5.8241,171.62,171.61,0.04022619]
[1748443026360,0.04122447,171.64,171.54,5.8678]
[1748443026562,11.645,171.67,171.54,5.8678]
[1748443026856,5.8251,171.59,171.55,5.8263]
[1748443027059,5.828,171.66,171.54,5.8678]
[1748443027457,0.0393804,171.62,171.58,0.03999221]
[1748443027762,0.04421315,171.62,171.47,5.9018]
[1748443027962,11.6472,171.64,171.5,5.8281]
[1748443028761,0.04176686,171.59,171.55,0.04261395]
[1748443029167,5.8261,171.56,171.55,0.04261395]
[1748443029559,3.8985,171.58,171.47,5.9018]
[1748443029755,3.8985,171.58,171.44,5.8299]
[1748443030558,5.8284,171.5,171.49,0.0437143]
[1748443036869,0.04226086,171.53,171.49,0.0437143]
[1748443037470,0.04226086,171.53,171.5,5.8279]
[1748443038272,0.04226086,171.53,171.5,9.7284]
[1748443038474,0.04226086,171.53,171.51,5.8278]
[1748443038864,5.86946086,171.53,171.5,5.9101]
[1748443039169,0.04226086,171.53,171.5,5.9101]
[1748443039364,5.9159,171.63,171.5,5.9101]
[1748443039572,5.9159,171.63,171.52,5.8272]
[1748443039773,5.9159,171.63,171.5,5.9101]
[1748443040266,0.04365,171.58,171.55,0.03945547]
[1748443040473,5.8261,171.56,171.55,0.03945547]
[1748443042269,0.04365,171.58,171.39,3.8283]
[1748443042465,5.9159,171.63,171.39,3.8283]
[1748443042964,5.9159,171.63,171.43,5.8303]
[1748443043473,0.04454327,171.55,171.51,0.04437984]
[1748443043774,0.04106602,171.55,171.39,3.8283]
[1748443043977,11.6511,171.58,171.39,3.8283]
[1748443044168,11.6511,171.58,171.44,5.8302]
[1748443044771,0.04172271,171.53,171.43,5.8304]
[1748443044970,0.04172271,171.53,171.46,0.03837978]
[1748443045475,5.8292,171.47,171.46,0.03837978]
[1748443047572,5.87313848,171.48,171.46,0.03837978]
[1748443047776,0.04423848,171.48,171.46,0.03837978]
[1748443048173,5.8292,171.47,171.46,0.03837978]
[1748443051377,0.04423848,171.48,171.46,0.03837978]
[1748443051878,0.04423848,171.48,171.46,5.86777978]
[1748443052379,0.04423848,171.48,171.47,5.8292]
[1748443052771,11.6505,171.59,171.46,0.03837978]
[1748443052971,6.079,171.58,171.4,2.022]
[1748443053676,5.828,171.51,171.47,5.829]
[1748443053876,5.86795286,171.51,171.47,0.04170063]
[1748443054265,0.03995286,171.51,171.47,0.04170063]
[1748443055779,5.8288,171.48,171.47,0.04170063]
[1748443056980,5.8302,171.44,171.4,2.022]
[1748443057872,5.83,171.45,171.4,2.022]
[1748443058072,0.03820603,171.44,171.41,0.04226396]
[1748443058478,0.03820603,171.44,171.42,5.8309]
[1748443058669,0.03820603,171.44,171.41,0.04226396]
[1748443059072,0.03820603,171.44,171.43,5.8305]
[1748443060179,0.03820603,171.44,171.42,5.8308]
[1748443060479,5.86840603,171.44,171.42,5.8308]
[1748443060980,0.03820603,171.44,171.42,5.8308]
[1748443061380,11.6532,171.55,171.41,0.04226396]
[1748443061582,5.8293,171.47,171.4,2.022]
[1748443061774,4.1048,171.54,171.4,2.022]
[1748443062380,4.1048,171.54,171.45,0.04225614]
[1748443062381,0.04276429,171.49,171.45,0.04225614]
[1748443062882,5.8296,171.46,171.45,0.04225614]
[1748443063276,0.04276429,171.49,171.45,0.04225614]
[1748443063471,5.8294,171.47,171.45,0.04225614]
[1748443063675,0.04276429,171.49,171.45,0.04225614]
[1748443065085,5.8294,171.47,171.45,0.04225614]
[1748443065279,0.04276429,171.49,171.45,0.04225614]
[1748443066279,5.8294,171.47,171.45,0.04225614]
[1748443067882,5.8295,171.46,171.45,0.04225614]
[1748443070887,0.04276429,171.49,171.35,1.9836]
[1748443071178,3.9977,171.45,171.32,2.0326]
[1748443071378,5.8324,171.38,171.32,2.0326]
[1748443071774,5.8324,171.38,171.34,5.8334]
[1748443071974,5.87312157,171.38,171.34,5.87611367]
[1748443072787,5.87312157,171.38,171.34,0.04271367]
[1748443073085,5.8328,171.37,171.34,0.04271367]
[1748443073385,0.04072157,171.38,171.34,0.04271367]
[1748443073989,0.04072157,171.38,171.35,5.8332]
[1748443074180,0.04072157,171.38,171.34,0.04271367]
[1748443074581,0.04072157,171.38,171.37,5.8326]
[1748443075478,0.04072157,171.38,171.34,0.04271367]
[1748443075479,3.9977,171.45,171.4,5.8313]
[1748443075684,3.9977,171.45,171.31,1.9319]
[1748443075685,3.9977,171.45,171.35,1.895]
[1748443075885,11.6545,171.53,171.35,1.895]
[1748443076085,5.8654,171.52,171.35,1.895]
[1748443076287,5.8302,171.45,171.35,1.895]
[1748443076487,5.8654,171.52,171.41,5.831]
[1748443076488,0.04387538,171.42,171.41,5.831]
[1748443076688,0.04041381,171.43,171.41,5.831]
[1748443076888,5.8654,171.52,171.4,0.04014361]
[1748443076889,0.04328757,171.44,171.4,0.04014361]
[1748443077090,0.03960273,171.44,171.4,0.04254546]
[1748443078091,0.03960273,171.44,171.42,5.8306]
[1748443078889,0.03960273,171.44,171.41,5.8311]
[1748443079380,0.03960273,171.44,171.4,0.04254546]
[1748443079584,0.03960273,171.44,171.43,5.8305]
[1748443079989,0.03960273,171.44,171.42,5.8308]
[1748443080491,5.86980273,171.44,171.41,5.8311]
[1748443080792,0.03960273,171.44,171.4,0.04254546]
[1748443081085,5.8306,171.43,171.4,0.04254546]
[1748443081481,0.03960273,171.44,171.4,0.04254546]
[1748443082192,5.8306,171.43,171.4,0.04254546]
[1748443082395,0.03960273,171.44,171.4,0.04254546]
[1748443082692,1.9912,171.43,171.4,0.04254546]
[1748443083290,5.8309,171.42,171.4,0.04254546]
[1748443083489,1.9912,171.43,171.4,0.04254546]
[1748443083688,1.9912,171.43,171.4,5.87384546]
[1748443083896,1.9912,171.43,171.4,0.04254546]
[1748443084696,6.0801,171.43,171.4,0.04254546]
[1748443085287,5.8309,171.42,171.4,0.04254546]
[1748443085491,6.0801,171.43,171.4,0.04254546]
[1748443086492,5.8311,171.42,171.4,0.04254546]
[1748443086896,6.0801,171.43,171.4,0.04254546]
[1748443087597,5.8312,171.41,171.4,0.04254546]
[1748443087797,6.0801,171.43,171.4,0.04254546]
[1748443088492,4.0106,171.43,171.42,5.8309]
[1748443088697,0.03960273,171.44,171.4,0.04254546]
[1748443089090,0.03960273,171.44,171.43,5.8305]
[1748443091404,5.8277,171.52,171.4,0.04254546]
[1748443091697,5.8277,171.52,171.32,20.93793392]
[1748443091698,5.9635,171.53,171.39,11.6638]
[1748443091885,11.791,171.53,171.49,5.8283]
[1748443092087,5.9635,171.53,171.38,6.0486]
[1748443092290,5.9635,171.53,171.46,5.8295]
[1748443092291,0.03773563,171.47,171.46,5.8295]
[1748443092492,0.04353032,171.48,171.45,0.04390034]
[1748443092695,11.647,171.64,171.45,0.04390034]
[1748443092897,11.647,171.64,171.4,11.6629]
[1748443092898,5.7534,171.63,171.4,11.6629]
[1748443093092,5.7534,171.63,171.51,5.8275]
[1748443093795,5.8263,171.56,171.55,0.03786901]
[1748443094794,5.8259,171.57,171.55,0.03786901]
[1748443094991,0.04080307,171.59,171.55,0.03786901]
[1748443095397,5.86600307,171.59,171.55,0.03786901]
[1748443095703,0.04080307,171.59,171.55,0.03786901]
[1748443096401,5.8258,171.57,171.55,0.03786901]
[1748443096605,2.0173,171.56,171.55,0.03786901]
[1748443097099,5.9178,171.56,171.55,0.03786901]
[1748443097298,11.7439,171.56,171.55,0.03786901]
[1748443097695,11.7439,171.56,171.49,5.8283]
[1748443097696,5.8269,171.54,171.49,5.8283]
[1748443098099,5.9178,171.56,171.45,6.0086]
[1748443098299,5.8267,171.55,171.5,5.828]
[1748443098501,5.9178,171.56,171.45,6.0086]
[1748443098697,5.9178,171.56,171.34,14.15112879]
[1748443098698,0.04321836,171.52,171.49,0.0427426]
[1748443098903,0.03984609,171.52,171.4,5.9434]
[1748443099099,5.9178,171.56,171.4,5.9434]
[1748443099496,5.8289,171.48,171.43,5.8304]
[1748443099703,5.8289,171.48,171.4,5.9434]
[1748443099899,5.8292,171.47,171.42,5.87313858]
[1748443100106,0.03718351,171.46,171.43,0.03724148]
[1748443100298,5.9178,171.56,171.43,0.0429073]
[1748443100503,5.9178,171.56,171.34,20.01392879]
[1748443100702,5.9178,171.56,171.34,5.8628]
[1748443100905,0.04071608,171.47,171.43,0.03945106]
[1748443101101,0.04052364,171.47,171.43,0.04382126]
[1748443101610,5.8302,171.44,171.43,0.04382126]
[1748443103907,5.8322,171.39,171.23,3.43503392]
[1748443104114,1.961,171.43,171.28,6.009]
[1748443104508,4.0798,171.46,171.28,6.009]
[1748443104909,4.0798,171.46,171.35,0.04279003]
[1748443104910,0.03975322,171.39,171.35,0.04279003]
[1748443105210,0.03975322,171.39,171.38,5.8322]
[1748443106309,4.0798,171.46,171.4,5.8313]
[1748443106512,4.0798,171.46,171.36,5.9188]
[1748443106713,5.8302,171.44,171.36,5.9188]
[1748443107113,4.0798,171.46,171.41,5.8312]
[1748443107311,4.0798,171.46,171.42,0.04282961]
[1748443107312,0.0385399,171.45,171.42,0.04282961]
[1748443107716,0.0385399,171.45,171.43,5.8302]
[1748443108218,0.0385399,171.45,171.42,5.87372961]
[1748443108608,0.0385399,171.45,171.42,0.04282961]
[1748443109317,5.8305,171.43,171.42,0.04282961]
[1748443109922,5.8317,171.4,171.36,5.8328]
[1748443110313,5.832,171.39,171.34,5.8332]
[1748443110509,3.9554,171.52,171.22,13.74013569]
[1748443110510,52.4442,171.51,171.22,3.43503392]
[1748443110712,34.96,171.49,171.14,16.92442606]
[1748443110914,34.96,171.49,171.31,0.04384848]
[1748443110915,0.03942008,171.34,171.31,0.04384848]
[1748443111117,0.03942008,171.34,171.18,5.8312]
[1748443111118,0.04446046,171.34,171.18,5.8312]
[1748443111422,147.4519,171.43,171.18,5.8312]
[1748443112214,0.04414942,171.32,171.29,0.03183189]
[1748443112419,0.03871063,171.32,171.18,5.8312]
[1748443112610,11.6639,171.39,171.18,5.8312]
[1748443113216,17.48,171.39,171.14,5.24422606]
[1748443113513,5.8363,171.26,171.2,5.8381]
[1748443113712,0.03972188,171.25,171.2,5.8381]
[1748443113911,0.03972188,171.25,171.15,1.9106]
[1748443114113,5.87652188,171.25,171.15,1.9106]
[1748443114325,0.03972188,171.25,171.15,1.9106]
[1748443115109,0.03972188,171.25,171.14,5.24422606]
[1748443115915,0.03972188,171.25,171.17,3.9474]
[1748443116314,5.87662188,171.25,171.2,5.8381]
[1748443116618,0.03972188,171.25,171.2,5.8381]
[1748443116820,0.03972188,171.25,171.19,5.8386]
[1748443117017,0.03972188,171.25,171.17,3.9474]
[1748443117924,5.87662188,171.25,171.2,5.8383]
[1748443118120,0.03972188,171.25,171.14,5.24422606]
[1748443118322,5.7391,171.24,171.14,5.24422606]
[1748443118523,5.7391,171.24,170.93,14.49329469]
[1748443118720,0.04296301,171.1,171.0,4.0644]
[1748443118923,0.03689255,171.07,171.06,5.8431]
[1748443119127,0.04211085,171.08,171.0,4.0644]
[1748443119316,0.04497155,171.06,171.0,4.0644]
[1748443119518,5.7391,171.24,171.04,5.8438]
[1748443119519,0.0449311,171.05,171.04,5.8438]
[1748443119719,0.0449311,171.05,171.0,4.0644]
[1748443119720,0.04468766,171.06,171.0,4.0644]
[1748443120019,0.04293855,171.05,170.89,89.77272727]
[1748443120225,40.6991,171.24,170.89,89.77272727]
[1748443120226,0.03729044,170.99,170.9,6.1203]
[1748443120525,0.04189242,170.96,170.95,5.8469]
[1748443120816,26.30145905,171.24,170.9,6.1203]
[1748443120817,0.04214019,170.97,170.9,6.1203]
[1748443121122,135.677,171.2,170.9,6.1203]
[1748443121427,11.6774,171.19,170.9,6.1203]
[1748443122123,0.03709637,171.06,171.03,0.04105619]
[1748443122319,0.04294072,171.06,171.03,0.04490885]
[1748443122718,0.04294072,171.06,171.05,5.8435]
[1748443122926,0.04294072,171.06,171.03,0.04490885]
[1748443123123,0.04294072,171.06,171.04,5.8438]
[1748443123522,0.04294072,171.06,171.03,0.04490885]
[1748443124723,0.04294072,171.06,171.03,8.85e-06]
[1748443124923,5.8438,171.04,171.03,8.85e-06]
[1748443127323,11.6838,171.04,171.03,8.85e-06]
[1748443127528,5.84,171.04,170.89,89.77272727]
[1748443127728,5.9306,171.05,170.9,5.8483]
[1748443128029,5.8469,170.95,170.9,5.8483]
[1748443128229,5.9306,171.05,170.9,5.8483]
[1748443128425,0.03812794,170.99,170.9,5.8483]
[1748443128625,5.8466,170.96,170.9,5.8483]
[1748443128822,0.04066796,170.95,170.91,5.8481]
[1748443129223,0.04066796,170.95,170.89,89.77272727]
[1748443129431,0.04066796,170.95,170.94,5.8472]
[1748443130427,0.04066796,170.95,170.91,3.9384]
[1748443131426,0.04066796,170.95,170.92,5.8478]
[1748443131621,17.48,171.13,170.91,9.7984]
[1748443131834,23.4412,171.12,170.91,3.9384]
[1748443132035,5.8455,171.0,170.94,5.8471]
[1748443132333,5.8455,171.0,170.91,3.9384]
[1748443132533,0.03755933,170.97,170.94,0.04049436]
[1748443133034,0.03755933,170.97,170.95,5.8466]
[1748443133334,23.4412,171.12,170.94,0.04049436]
[1748443133531,5.9612,171.12,170.97,5.8462]
[1748443133737,5.9612,171.12,170.91,3.9384]
[1748443134028,23.4412,171.12,170.94,5.847]
[1748443134236,11.6832,171.11,170.91,3.9384]
[1748443134433,11.6832,171.11,170.99,0.04303318]
[1748443134434,0.03940681,171.03,170.99,0.04303318]
[1748443134641,0.03966631,171.03,170.99,0.04299606]
[1748443134830,5.8452,171.0,170.99,0.04299606]
[1748443140939,5.8452,171.0,170.99,9.606e-05]
[1748443141138,2.0811,171.02,170.91,3.9384]
[1748443141443,4.102,171.02,170.91,3.9384]
[1748443142037,5.8465,170.96,170.95,0.03570127]
[1748443144140,5.8465,170.96,170.95,1.27e-06]
[1748443149944,11.6865,170.96,170.95,1.27e-06]
[1748443150142,5.8465,170.96,170.95,1.27e-06]
[1748443151251,5.8465,170.96,170.89,89.77272727]
[1748443151252,5.8486,170.9,170.89,80.83952854]
[1748443151442,11.6953,170.93,170.68,17.5449]
[1748443151641,11.6953,170.93,170.77,6.1307]
[1748443151846,11.6953,170.93,170.8,5.8519]
[1748443152247,11.6953,170.93,170.77,6.1307]
[1748443152248,0.04093954,170.88,170.79,5.8523]
[1748443152449,0.04093954,170.88,170.77,6.1307]
[1748443152650,0.03808036,170.84,170.77,6.1307]
[1748443152950,29.194,171.19,170.77,6.1307]
[1748443153351,29.194,171.19,170.88,5.8491]
[1748443153648,34.96,171.07,170.77,6.1307]
[1748443153849,0.04476782,170.92,170.88,0.04173097]
[1748443154049,5.8456,170.99,170.93,5.8475]
[1748443154252,0.0396141,170.98,170.94,0.04173097]
[1748443154450,0.04042329,170.98,170.94,0.03929988]
[1748443156044,0.04042329,170.98,170.97,5.8462]
[1748443156249,11.6817,171.13,170.94,0.03929988]
[1748443156452,11.6817,171.13,170.89,6.2385]
[1748443156649,0.4791,171.12,170.89,6.2385]
[1748443157250,0.04313175,171.02,170.99,0.03857083]
[1748443157448,11.6817,171.13,170.99,0.04429854]
[1748443157652,11.6817,171.13,170.89,17.9362]
[1748443157845,11.6817,171.13,170.9,11.697]
[1748443158050,0.5181,171.17,170.91,1.95777929]
[1748443158249,0.5181,171.17,170.89,6.2385]
[1748443158449,0.04088573,171.05,171.01,0.03923181]
[1748443158652,0.03824446,171.05,171.01,0.03889602]
[1748443159256,5.88174446,171.05,171.01,5.88369602]
[1748443159454,11.6796,171.16,171.02,4.1004]
[1748443159952,0.5181,171.17,171.02,4.1004]
[1748443159953,11.6803,171.15,171.02,4.1004]
[1748443160550,0.03962017,171.1,171.07,2.061e-05]